[Event "SVK ECo-C Extraliga 2018-19"]
[Site "Slovakia"]
[Date "2018.12.09"]
[Round "4"]
[White "Janko, Zoltan"]
[Black "Manik, Mikulas"]
[Result "0-1"]
[ECO "B89"]
[WhiteElo "2261"]
[BlackElo "2404"]
[Annotator "NA"]
[PlyCount "60"]
[EventDate "2018.11.10"]
[EventType "team-tourn"]
[EventCountry "SVK"]
[SourceTitle "playchess.com"]
[Source "ChessBase"]
[SourceQuality "1"]
[WhiteTeam "Komarno"]
[BlackTeam "Prakovce"]
[TimeControl "40/5400+30:1800+30"]

1. e4 {[%emt 0:00:00]} c5 {[%emt 0:00:00]} 2. Nf3 {[%emt 0:00:00]} d6 {[%emt 0:00:00]} 3. d4 {[%emt 0:00:08]} cxd4 {[%emt 0:00:00]} 4. Nxd4 {[%emt 0:00:07]} Nf6 {[%emt 0:00:07]} 5. Nc3 {[%emt 0:00:06]} Nc6 {[%emt 0:01:09]} 6. Bc4 {[%emt 0:01:20]} e6 {[%emt 0:00:26]} 7. Be3 {[%emt 0:00:41]} a6 {[%emt 0:00:29]} 8. Bb3 {[%emt 0:01:54]} Qc7 {[%emt 0:03:59] LiveBook: 368 Games} 9. Qe2 {[%emt 0:02:42]} Na5 {[%emt 0:01:07]} 10. g4 {[%emt 0:02:45]} h6 {[%emt 0:14:22]} 11. O-O-O {[%emt 0:06:36]} b5 {[%emt 0:00:40]} 12. g5 {[%emt 0:06:07]} (12. f3 $11) 12... hxg5 {[%emt 0:03:59]} 13. Bxg5 {[%emt 0:00:29]} Nxb3+ {[%emt 0:07:15]} 14. axb3 {[%emt 0:00:07]} Bb7 {[%emt 0:00:17]} 15. f4 {[%emt 0:17:13]} b4 {[%emt 0:17:31]} 16. e5 {[%emt 0:01:42]} dxe5 {[%emt 0:02:53]} 17. fxe5 {[%emt 0:02:14]} Nd7 {[%emt 0:02:41]} 18. Nxe6 {[%emt 0:23:35]} fxe6 {[%emt 0:00:22]} 19. Qg4 {[%emt 0:00:11]} Nc5 {[%emt 0:08:59]} 20. Na4 {[%emt 0:04:05]} Qc6 {[%emt 0:03:43]} 21. Nxc5 {[%emt 0:08:35]} Bxc5 {[%emt 0:02:55]} 22. Bf6 {[%emt 0:00:33]} Rf8 {[%emt 0:02:52]} 23. Qxg7 {[%emt 0:03:48]} Rf7 {[%emt 0:05:53]} 24. Qg8+ {[%emt 0:01:06]} Bf8 {[%emt 0:01:14]} 25. Rhg1 {[%emt 0:02:43]} Rc8 {[%emt 0:02:11]} 26. Rd2 {[%emt 0:01:32]} Qe4 {[%emt 0:01:22]} 27. Kb1 {[%emt 0:05:47]} Bd5 {[%emt 0:04:06]} 28. Rd3 {[%emt 0:02:41]} Rxc2 {[%emt 0:03:46]} 29. Kxc2 {[%emt 0:02:13]} Qe2+ {[%emt 0:00:18]} 30. Rd2 {[%emt 0:00:54]} Be4+ {[%emt 0:00:05] Rh1} 0-1

[Event "SVK ECo-C Extraliga 2018-19"]
[Site "Slovakia"]
[Date "2018.12.09"]
[Round "4"]
[White "Petran, Peter"]
[Black "Machata, Martin"]
[Result "1/2-1/2"]
[ECO "A00"]
[WhiteElo "2256"]
[BlackElo "2195"]
[Annotator "NA"]
[PlyCount "40"]
[EventDate "2018.11.10"]
[EventType "team-tourn"]
[EventCountry "SVK"]
[SourceTitle "playchess.com"]
[Source "ChessBase"]
[SourceQuality "1"]
[WhiteTeam "Slovan"]
[BlackTeam "Modra"]
[TimeControl "40/5400+30:1800+30"]

1. g3 {[%emt 0:00:00]} g6 {[%emt 0:06:15]} 2. Bg2 {[%emt 0:00:00]} Bg7 {[%emt 0:00:01]} 3. d4 {[%emt 0:01:21]} d6 {[%emt 0:09:51]} 4. e4 {[%emt 0:00:25]} Nd7 {[%emt 0:00:18]} 5. Ne2 {[%emt 0:00:14]} e5 {[%emt 0:00:32]} 6. Nbc3 {[%emt 0:00:46]} Ngf6 {[%emt 0:03:41]} 7. h3 {[%emt 0:00:12]} O-O {[%emt 0:00:35]} 8. Be3 {[%emt 0:00:06]} c6 {[%emt 0:05:41]} 9. a4 {[%emt 0:00:11]} Qc7 {[%emt 0:03:43]} 10. O-O {[%emt 0:00:09]} Re8 {[%emt 0:05:06]} 11. b3 {[%emt 0:04:21]} exd4 {[%emt 0:11:10]} 12. Bxd4 {[%emt 0:00:31]} Nc5 {[%emt 0:09:52]} 13. e5 {[%emt 0:03:30]} Rxe5 {[%emt 0:02:55]} 14. Bxe5 {[%emt 0:00:55]} dxe5 {[%emt 0:00:01]} 15. b4 {[%emt 0:01:02]} Ne6 {[%emt 0:09:58]} 16. b5 {[%emt 0:01:46]} Bd7 {[%emt 0:04:37]} 17. bxc6 {[%emt 0:00:52]} Bxc6 {[%emt 0:01:00]} 18. Qc1 {[%emt 0:21:41]} Bxg2 {[%emt 0:01:16]} 19. Kxg2 {[%emt 0:00:10]} Qc6+ {[%emt 0:00:29]} 20. f3 {[%emt 0:01:02]} Nd4 {[%emt 0:05:13]} 1/2-1/2

[Event "SVK ECo-C Extraliga 2018-19"]
[Site "Slovakia"]
[Date "2018.12.09"]
[Round "4"]
[White "Maslikova, Veronika"]
[Black "Pcola, Jaroslav"]
[Result "1-0"]
[ECO "B32"]
[WhiteElo "2249"]
[BlackElo "2102"]
[Annotator "NA"]
[PlyCount "85"]
[EventDate "2018.11.10"]
[EventType "team-tourn"]
[EventCountry "SVK"]
[SourceTitle "playchess.com"]
[Source "ChessBase"]
[SourceQuality "1"]
[WhiteTeam "Podhajska"]
[BlackTeam "Snina"]
[TimeControl "40/5400+30:1800+30"]

1. e4 {[%emt 0:00:00]} c5 {[%emt 0:00:00]} 2. Nf3 {[%emt 0:00:00]} Nc6 {[%emt 0:00:30]} 3. d4 {[%emt 0:00:00]} cxd4 {[%emt 0:00:29]} 4. Nxd4 {[%emt 0:00:00]} g6 {[%emt 0:03:49]} 5. Nxc6 {[%emt 0:15:57]} bxc6 {[%emt 0:01:04]} 6. c4 {[%emt 0:10:18]} Bg7 {[%emt 0:03:39]} 7. Nc3 {[%emt 0:06:21]} Rb8 {[%emt 0:07:01]} 8. Qc2 {[%emt 0:04:28]} Nf6 {[%emt 0:03:13]} 9. Be2 {[%emt 0:11:27]} Qc7 {[%emt 0:03:41]} 10. Bf3 {[%emt 0:09:49]} O-O {[%emt 0:02:49]} 11. O-O {[%emt 0:01:35]} a5 {[%emt 0:17:38]} 12. Rd1 Ba6 13. c5 {[%emt 0:13:54]} Rfd8 {[%emt 0:15:04]} 14. g3 {[%emt 0:01:35]} Ne8 {[%emt 0:02:43]} 15. Rb1 {[%emt 0:04:29]} e5 {[%emt 0:06:25]} 16. b3 {[%emt 0:00:33]} Bf8 {[%emt 0:00:38]} 17. Ba3 {[%emt 0:00:41]} Qa7 {[%emt 0:01:24]} 18. Na4 {[%emt 0:03:17]} Nc7 {[%emt 0:07:17]} 19. Bg4 {[%emt 0:00:27]} Nb5 {[%emt 0:00:48]} 20. Bb2 {[%emt 0:00:18]} f6 {[%emt 0:03:27]} 21. Rd2 {[%emt 0:02:28]} d6 {[%emt 0:03:01]} 22. cxd6 {[%emt 0:01:06]} Bxd6 {[%emt 0:01:13]} 23. Qxc6 {[%emt 0:01:17]} Nd4 {[%emt 0:05:27]} 24. Bxd4 {[%emt 0:02:28]} exd4 {[%emt 0:00:03]} 25. Qd5+ {[%emt 0:00:35]} Kg7 {[%emt 0:01:00]} 26. Qxd4 {[%emt 0:00:14]} Qe7 {[%emt 0:01:55]} 27. Qe3 {[%emt 0:03:34]} Bb5 {[%emt 0:01:12]} 28. Rbd1 {[%emt 0:03:14]} Bb4 {[%emt 0:03:27]} 29. Rxd8 {[%emt 0:00:19]} Rxd8 {[%emt 0:00:23]} 30. Rxd8 {[%emt 0:00:04]} Qxd8 {[%emt 0:00:05]} 31. Nc3 {[%emt 0:01:26]} Qd3 {[%emt 0:03:54]} 32. Nxb5 {[%emt 0:01:53]} Qxb5 {[%emt 0:00:02]} 33. a4 {[%emt 0:00:16]} Qe5 {[%emt 0:00:44]} 34. Be2 {[%emt 0:01:23]} Bc5 {[%emt 0:00:37]} 35. Qd3 {[%emt 0:00:38]} Qa1+ {[%emt 0:00:58]} 36. Kg2 {[%emt 0:00:22]} Qe1 {[%emt 0:00:35]} 37. Qf3 {[%emt 0:00:08]} h5 {[%emt 0:01:09]} 38. h3 {[%emt 0:01:09]} Bd4 {[%emt 0:01:01]} 39. g4 {[%emt 0:00:15]} h4 {[%emt 0:00:33]} 40. Bc4 {[%emt 0:00:40]} g5 {[%emt 0:00:24]} 41. e5 {[%emt 0:07:06]} Qxe5 {[%emt 0:02:55]} 42. Qb7+ {[%emt 0:01:51]} Kh6 {[%emt 0:03:03]} 43. Bg8 {[%emt 0:01:13]} 1-0

[Event "SVK ECo-C Extraliga 2018-19"]
[Site "Slovakia"]
[Date "2018.12.09"]
[Round "4"]
[White "Federic, Jozef"]
[Black "Briestensky, Rastislav"]
[Result "1-0"]
[ECO "A80"]
[WhiteElo "2207"]
[BlackElo "2331"]
[Annotator "NA"]
[PlyCount "155"]
[EventDate "2018.11.10"]
[EventType "team-tourn"]
[EventCountry "SVK"]
[SourceTitle "playchess.com"]
[Source "ChessBase"]
[SourceQuality "1"]
[WhiteTeam "Modra"]
[BlackTeam "Slovan"]
[TimeControl "40/5400+30:1800+30"]

1. d4 {[%emt 0:00:00]} f5 {[%emt 0:00:00]} 2. Nc3 {[%emt 0:00:01]} Nf6 {[%emt 0:00:00]} 3. Bg5 {[%emt 0:00:30]} d5 {[%emt 0:04:18]} 4. Bxf6 {[%emt 0:01:30]} exf6 {[%emt 0:00:23]} 5. e3 {[%emt 0:00:21]} c6 6. Bd3 {[%emt 0:01:13]} Be6 {[%emt 0:05:45]} 7. h4 {[%emt 0:02:28]} Bd6 {[%emt 0:03:48]} 8. Qf3 {[%emt 0:03:50]} Qd7 {[%emt 0:06:20]} 9. h5 {[%emt 0:03:12]} Na6 {[%emt 0:02:35]} 10. a3 {[%emt 0:01:34]} Nc7 {[%emt 0:00:04]} 11. Nge2 {[%emt 0:04:07]} O-O-O {[%emt 0:00:24]} 12. Nf4 {[%emt 0:01:54]} Bf7 {[%emt 0:00:56]} 13. Qh3 {[%emt 0:10:23]} Bxf4 {[%emt 0:05:14]} 14. exf4 {[%emt 0:00:59]} Be6 {[%emt 0:08:58]} 15. O-O-O {[%emt 0:01:45]} Ne8 {[%emt 0:00:23]} 16. Rde1 {[%emt 0:16:46]} Nd6 {[%emt 0:00:29]} 17. Na4 {[%emt 0:04:04]} b6 {[%emt 0:01:16]} 18. Ba6+ {[%emt 0:11:47]} Kc7 {[%emt 0:01:52]} 19. Qb3 {[%emt 0:00:31]} Rhe8 {[%emt 0:02:52]} 20. Bd3 {[%emt 0:13:52]} Bf7 {[%emt 0:04:14]} 21. Qb4 {[%emt 0:02:06]} Rxe1+ {[%emt 0:04:54]} 22. Qxe1 {[%emt 0:00:06]} Re8 {[%emt 0:00:05]} 23. Qd2 {[%emt 0:01:17]} Ne4 {[%emt 0:00:51]} 24. Bxe4 {[%emt 0:00:14]} fxe4 {[%emt 0:01:15]} 25. Qe2 {[%emt 0:01:03]} Kb7 {[%emt 0:01:37]} 26. Nc3 {[%emt 0:02:40]} Rc8 {[%emt 0:08:15]} 27. Nd1 {[%emt 0:05:15]} c5 {[%emt 0:04:00]} 28. dxc5 {[%emt 0:00:14]} bxc5 {[%emt 0:02:09]} 29. Rh3 {[%emt 0:01:43]} f5 {[%emt 0:01:09]} 30. Rb3+ {[%emt 0:02:34]} Ka8 {[%emt 0:00:39]} 31. Qb5 {[%emt 0:00:40]} Qxb5 {[%emt 0:01:43]} 32. Rxb5 {[%emt 0:00:02]} d4 {[%emt 0:02:23]} 33. b4 {[%emt 0:00:22]} cxb4 {[%emt 0:01:49]} 34. axb4 {[%emt 0:00:37]} Bxh5 {[%emt 0:05:48]} 35. Rxf5 {[%emt 0:00:16]} Be2 {[%emt 0:04:40]} 36. Kd2 {[%emt 0:00:46]} Bf1 {[%emt 0:02:58]} 37. g3 {[%emt 0:00:29]} Rd8 {[%emt 0:00:46]} 38. Ke1 {[%emt 0:02:35]} Bg2 {[%emt 0:02:15]} 39. Re5 {[%emt 0:04:31]} Bf3 {[%emt 0:02:28]} 40. Nb2 {[%emt 0:00:20]} Rc8 {[%emt 0:02:02]} 41. Kd2 {[%emt 0:30:31]} Rb8 {[%emt 0:36:02]} 42. c3 {[%emt 0:01:06]} dxc3+ {[%emt 0:00:00]} 43. Kxc3 {[%emt 0:00:00]} Rc8+ {[%emt 0:00:00]} 44. Nc4 {[%emt 0:00:00]} g6 {[%emt 0:00:00]} 45. Rc5 {[%emt 0:00:00]} Rd8 {[%emt 0:00:00]} 46. Na5 {[%emt 0:00:00]} Rd3+ {[%emt 0:00:00]} 47. Kc4 {[%emt 0:00:00]} Kb8 {[%emt 0:00:00]} 48. Re5 {[%emt 0:00:00]} Rd2 {[%emt 0:00:00]} 49. Re7 {[%emt 0:00:00]} Rc2+ {[%emt 0:00:00]} 50. Kd4 {[%emt 0:00:00]} Rd2+ {[%emt 0:00:00]} 51. Ke5 {[%emt 0:00:00]} a6 {[%emt 0:00:00]} 52. Rxh7 {[%emt 0:00:00]} Rxf2 {[%emt 0:00:00]} 53. Nc6+ {[%emt 0:00:00]} Kc8 {[%emt 0:00:00]} 54. Ne7+ {[%emt 0:00:00]} Kb8 {[%emt 0:00:00]} 55. Nd5 {[%emt 0:00:00]} Re2 {[%emt 0:00:00]} 56. Kd4 {[%emt 0:00:00]} Rd2+ {[%emt 0:00:00]} 57. Kc5 {[%emt 0:00:00]} Kc8 {[%emt 0:00:00]} 58. Rg7 {[%emt 0:00:00]} Rd3 {[%emt 0:00:00]} 59. Kc6 {[%emt 0:00:00]} Kb8 {[%emt 0:00:00]} 60. Kb6 {[%emt 0:04:04]} Kc8 {[%emt 0:00:00]} 61. Kc6 {[%emt 0:01:37]} Kb8 {[%emt 0:00:00]} 62. Kb6 {[%emt 0:00:04]} Kc8 {[%emt 0:00:00]} 63. Ne7+ {[%emt 0:00:15]} Kd8 {[%emt 0:00:04]} 64. Nc6+ {[%emt 0:00:14]} Ke8 {[%emt 0:00:58]} 65. Rxg6 {[%emt 0:00:13]} Kf8 {[%emt 0:04:04]} 66. Ne5 {[%emt 0:02:29]} Ra3 {[%emt 0:01:16]} 67. f5 {[%emt 0:00:56]} Bh5 {[%emt 0:06:05]} 68. Rh6 {[%emt 0:00:02]} Be2 {[%emt 0:00:10]} 69. f6 {[%emt 0:00:10]} Rxg3 {[%emt 0:00:16]} 70. f7 {[%emt 0:00:06]} Kg7 {[%emt 0:03:02]} 71. Rh8 {[%emt 0:00:53]} Kxh8 {[%emt 0:00:24]} 72. f8=Q+ {[%emt 0:00:06]} Kh7 {[%emt 0:00:13]} 73. Qf5+ {[%emt 0:00:22]} Kg7 {[%emt 0:00:24]} 74. Qf7+ {[%emt 0:00:07]} Kh8 {[%emt 0:00:36]} 75. Ng6+ {[%emt 0:00:06]} Rxg6+ {[%emt 0:00:07]} 76. Qxg6 {[%emt 0:00:03]} Bd3 {[%emt 0:00:11]} 77. Qg5 {[%emt 0:00:12]} Kh7 {[%emt 0:00:12]} 78. Kc5 {[%emt 0:00:05]} 1-0

[Event "SVK ECo-C Extraliga 2018-19"]
[Site "Slovakia"]
[Date "2018.12.09"]
[Round "4"]
[White "Oliver, Trop"]
[Black "Kantorik, Marian"]
[Result "1/2-1/2"]
[ECO "A13"]
[WhiteElo "2207"]
[BlackElo "2223"]
[Annotator "NA"]
[PlyCount "109"]
[EventDate "2018.11.10"]
[EventType "team-tourn"]
[EventCountry "SVK"]
[SourceTitle "playchess.com"]
[Source "ChessBase"]
[SourceQuality "1"]
[BlackTeam "Dunajov"]
[TimeControl "40/5400+30:1800+30"]

1. c4 e6 2. e4 c5 3. Nc3 Nc6 4. Nge2 Nf6 5. f4 d5 6. e5 d4 7. exf6 dxc3 8. dxc3 Qxd1+ 9. Kxd1 gxf6 10. Ng3 b6 11. Nh5 f5 12. Be2 Bb7 13. Rg1 O-O-O+ 14. Kc2 Na5 15. b3 Be4+ 16. Kb2 Be7 17. Be3 Rd7 18. Bf3 Bxf3 19. gxf3 Rd3 20. Rae1 Bh4 21. Re2 Rxe3 22. Rxe3 Bf2 23. Ree1 Bxe1 24. Rxe1 Rg8 25. Re2 Rg1 26. Rf2 Nc6 27. Kc2 Kd8 28. Kd3 Ke7 29. Ke3 h6 30. Rd2 a5 31. Rb2 f6 32. Ng3 Re1+ 33. Kd2 Rg1 34. Ke3 Re1+ 35. Kd2 Ra1 36. a4 Rg1 37. Ke3 Ra1 38. Ke2 Kd6 39. Kd3 Nd8 40. Nh5 Rd1+ 41. Ke3 Re1+ 42. Kd2 Rh1 43. Ke3 Ke7 44. Ng3 Ra1 45. Kd3 Nb7 46. Rg2 Nd6 47. Nh5 Rd1+ 48. Ke3 Rb1 49. Rg7+ Nf7 50. Rg6 Rxb3 51. Kd3 Rb2 52. Nxf6 Rxh2 53. Ng8+ Kf8 54. Nf6 Ke7 55. Ng8+ 1/2-1/2

[Event "SVK ECo-C Extraliga 2018-19"]
[Site "Slovakia"]
[Date "2018.12.09"]
[Round "4"]
[White "Bottyan, Peter"]
[Black "Jacko, Vladimir"]
[Result "1/2-1/2"]
[ECO "A46"]
[WhiteElo "2187"]
[BlackElo "2330"]
[Annotator "NA"]
[PlyCount "151"]
[EventDate "2018.11.10"]
[EventType "team-tourn"]
[EventCountry "SVK"]
[SourceTitle "playchess.com"]
[Source "ChessBase"]
[SourceQuality "1"]
[WhiteTeam "Komarno"]
[BlackTeam "Prakovce"]
[TimeControl "40/5400+30:1800+30"]

1. d4 {[%emt 0:00:00]} Nf6 {[%emt 0:00:00]} 2. Nf3 {[%emt 0:00:32]} e6 {[%emt 0:00:30]} 3. Bg5 {[%emt 0:04:34]} c5 {[%emt 0:02:58]} 4. Nc3 {[%emt 0:13:48]} cxd4 $11 {[%emt 0:07:10] LiveBook: 24 Games} 5. Nxd4 {[%emt 0:08:42]} Nc6 {[%emt 0:14:42]} 6. e3 {[%emt 0:15:15]} d5 {[%emt 0:01:56]} 7. Be2 {[%emt 0:07:29]} Be7 {[%emt 0:02:28]} 8. O-O {[%emt 0:04:47]} O-O {[%emt 0:00:33]} 9. Nxc6 {[%emt 0:09:48]} bxc6 {[%emt 0:00:06]} 10. Bf4 {[%emt 0:00:08]} Bd6 {[%emt 0:13:14]} 11. Bxd6 {[%emt 0:05:30]} Qxd6 {[%emt 0:00:09]} 12. Bf3 {[%emt 0:04:19]} e5 {[%emt 0:01:55]} 13. g3 {[%emt 0:01:28]} Rd8 {[%emt 0:04:46]} 14. Ne2 {[%emt 0:07:31]} Ba6 {[%emt 0:21:02]} 15. Re1 {[%emt 0:00:39]} Qe6 {[%emt 0:01:20]} 16. Nc3 {[%emt 0:06:31]} Qf5 {[%emt 0:09:02]} 17. Be2 {[%emt 0:00:12]} Bb7 {[%emt 0:01:32]} 18. Qd3 {[%emt 0:02:52]} Qe6 {[%emt 0:04:31]} 19. Na4 {[%emt 0:00:53]} Qe7 {[%emt 0:00:29]} 20. Qc3 {[%emt 0:00:57]} Ne4 {[%emt 0:00:59]} 21. Qa5 {[%emt 0:00:23]} Ng5 {[%emt 0:02:29]} 22. Nc5 {[%emt 0:01:37]} Bc8 {[%emt 0:00:14]} 23. h4 {[%emt 0:01:25]} Ne6 {[%emt 0:01:24]} 24. Nxe6 {[%emt 0:00:44]} Bxe6 {[%emt 0:00:02]} 25. c4 {[%emt 0:00:35]} Qf6 {[%emt 0:02:02]} 26. Rad1 {[%emt 0:01:21]} Qe7 {[%emt 0:03:01]} 27. Bf1 {[%emt 0:00:44]} Rd6 {[%emt 0:01:36]} 28. cxd5 {[%emt 0:00:32]} cxd5 {[%emt 0:00:03]} 29. a3 {[%emt 0:00:16]} Rad8 {[%emt 0:00:20]} 30. b4 {[%emt 0:00:28]} Bg4 {[%emt 0:02:16]} 31. Rc1 {[%emt 0:00:15]} g6 {[%emt 0:00:49]} 32. Rc5 {[%emt 0:00:36]} Qf6 {[%emt 0:01:02]} 33. b5 {[%emt 0:00:46]} d4 {[%emt 0:00:10]} 34. Qb4 {[%emt 0:00:39]} Bf3 {[%emt 0:01:24]} 35. exd4 {[%emt 0:00:30]} exd4 {[%emt 0:00:01]} 36. Qd2 {[%emt 0:00:33]} Ba8 {[%emt 0:01:07]} 37. Bg2 {[%emt 0:00:19]} Bxg2 {[%emt 0:00:18]} 38. Kxg2 {[%emt 0:00:02]} d3 {[%emt 0:00:11]} 39. Rce5 {[%emt 0:01:14]} Rd5 {[%emt 0:00:39]} 40. Re8+ {[%emt 0:00:33]} Kg7 {[%emt 0:00:57]} 41. Rxd8 {[%emt 0:11:19]} Rxd8 {[%emt 0:00:00]} 42. Re3 {[%emt 0:11:25]} Qd4 {[%emt 0:01:02]} 43. Kh2 {[%emt 0:00:52]} h5 {[%emt 0:16:23]} 44. a4 {[%emt 0:02:23]} Rd5 {[%emt 0:04:55]} 45. a5 {[%emt 0:02:48]} Kh7 {[%emt 0:02:11]} 46. a6 {[%emt 0:01:44]} Qc4 {[%emt 0:01:40]} 47. b6 {[%emt 0:02:11]} Qxa6 {[%emt 0:05:51]} 48. bxa7 {[%emt 0:01:15]} Qxa7 {[%emt 0:00:09]} 49. Rxd3 {[%emt 0:00:17]} Rxd3 {[%emt 0:00:15]} 50. Qxd3 {[%emt 0:00:06]} Qxf2+ {[%emt 0:00:02]} 51. Kh1 {[%emt 0:00:39]} Kh6 {[%emt 0:01:42]} 52. Qc3 {[%emt 0:00:12]} Qf1+ {[%emt 0:00:32]} 53. Kh2 {[%emt 0:00:05]} Kh7 {[%emt 0:00:09]} 54. Qe5 {[%emt 0:00:23]} Qa6 {[%emt 0:00:30]} 55. Qc3 {[%emt 0:00:21]} Qe6 {[%emt 0:00:29]} 56. Qc7 {[%emt 0:00:11]} Kg7 {[%emt 0:00:15]} 57. Qc3+ {[%emt 0:00:14]} f6 {[%emt 0:00:19]} 58. Qc7+ {[%emt 0:00:09]} Kh6 {[%emt 0:00:20]} 59. Qf4+ {[%emt 0:02:26]} g5 {[%emt 0:00:18]} 60. hxg5+ {[%emt 0:00:33]} fxg5 {[%emt 0:00:01]} 61. Qb8 {[%emt 0:00:46]} g4 {[%emt 0:02:06]} 62. Qf4+ {[%emt 0:00:34]} Kg6 {[%emt 0:00:00]} 63. Qb8 {[%emt 0:00:12]} Qe2+ {[%emt 0:00:30]} 64. Kg1 {[%emt 0:00:17]} Qd1+ {[%emt 0:00:17]} 65. Kh2 {[%emt 0:00:08]} Qd2+ {[%emt 0:00:11]} 66. Kg1 {[%emt 0:00:08]} Qe3+ {[%emt 0:02:34]} 67. Kh2 {[%emt 0:00:21]} Kf5 {[%emt 0:00:24]} 68. Qf8+ {[%emt 0:00:41]} Ke4 {[%emt 0:00:09]} 69. Qe8+ {[%emt 0:00:26]} Kf3 {[%emt 0:00:11]} 70. Qf7+ {[%emt 0:00:10]} Ke2 {[%emt 0:00:12]} 71. Qxh5 {[%emt 0:01:28]} Qf2+ {[%emt 0:00:56]} 72. Kh1 {[%emt 0:00:08]} Qf3+ {[%emt 0:01:18]} 73. Kh2 {[%emt 0:00:14]} Qf2+ {[%emt 0:00:25]} 74. Kh1 {[%emt 0:00:05]} Kf3 {[%emt 0:00:37]} 75. Qf5+ {[%emt 0:00:09]} Kxg3 {[%emt 0:00:04]} 76. Qxg4+ {[%emt 0:00:16]} 1/2-1/2

[Event "SVK ECo-C Extraliga 2018-19"]
[Site "Slovakia"]
[Date "2018.12.09"]
[Round "4"]
[White "Lintner, Igor"]
[Black "Csonka, Attila Istvan"]
[Result "0-1"]
[ECO "B49"]
[WhiteElo "2161"]
[BlackElo "2352"]
[Annotator "NA"]
[PlyCount "70"]
[EventDate "2018.11.10"]
[EventType "team-tourn"]
[EventCountry "SVK"]
[SourceTitle "playchess.com"]
[Source "ChessBase"]
[SourceQuality "1"]
[WhiteTeam "Osuske"]
[TimeControl "40/5400+30:1800+30"]

1. e4 {[%emt 0:00:09]} c5 {[%emt 0:00:00]} 2. Nf3 {[%emt 0:00:15]} e6 {[%emt 0:00:00]} 3. d4 {[%emt 0:01:25]} cxd4 {[%emt 0:00:06]} 4. Nxd4 {[%emt 0:00:04]} Nc6 {[%emt 0:00:09]} 5. Nc3 {[%emt 0:00:50]} Qc7 {[%emt 0:00:07]} 6. Be2 {[%emt 0:02:08]} a6 {[%emt 0:00:18]} 7. Be3 {[%emt 0:00:58]} Nf6 {[%emt 0:00:08]} 8. O-O {[%emt 0:02:01]} b5 {[%emt 0:01:57]} 9. a3 {[%emt 0:01:52]} Bb7 {[%emt 0:00:57]} 10. Kh1 {[%emt 0:08:05]} Rc8 $11 {[%emt 0:10:11]} 11. f4 {[%emt 0:05:08]} h5 {[%emt 0:07:12]} 12. Nxc6 {[%emt 0:05:12]} Bxc6 {[%emt 0:00:59]} 13. Bf3 {[%emt 0:03:24]} b4 {[%emt 0:05:47]} 14. axb4 {[%emt 0:07:53]} Bxb4 {[%emt 0:00:18]} 15. Rxa6 {[%emt 0:03:12]} Bxc3 {[%emt 0:02:59]} 16. Ra7 {[%emt 0:00:32]} Qd8 {[%emt 0:02:21]} 17. bxc3 {[%emt 0:00:37]} Bxe4 {[%emt 0:03:28]} 18. Bxe4 {[%emt 0:05:31]} Nxe4 {[%emt 0:00:19]} 19. Bb6 {[%emt 0:02:00]} Qe7 {[%emt 0:00:53]} 20. Ba5 {[%emt 0:01:06]} O-O {[%emt 0:00:44]} 21. Bb4 {[%emt 0:15:00]} Qh4 {[%emt 0:01:47]} 22. Qe1 {[%emt 0:01:31]} Qxe1 {[%emt 0:00:32]} 23. Rxe1 {[%emt 0:00:37]} Nc5 {[%emt 0:00:19]} 24. Re5 {[%emt 0:05:50]} d6 {[%emt 0:02:18]} 25. Rxh5 {[%emt 0:00:26]} Ne4 {[%emt 0:00:34]} 26. Rb5 {[%emt 0:14:02]} Nxc3 {[%emt 0:01:52]} 27. Rbb7 {[%emt 0:01:15]} Ne4 {[%emt 0:01:43]} 28. Rc7 {[%emt 0:02:02]} Rxc7 {[%emt 0:00:40]} 29. Rxc7 {[%emt 0:00:04]} Rb8 {[%emt 0:00:12]} 30. Rc4 {[%emt 0:10:21]} d5 {[%emt 0:00:42]} 31. Rd4 {[%emt 0:00:01]} Rc8 {[%emt 0:00:20]} 32. h3 {[%emt 0:01:42]} Rxc2 {[%emt 0:00:16]} 33. Kh2 {[%emt 0:00:32]} Rc4 {[%emt 0:01:06]} 34. Rxc4 {[%emt 0:00:02]} dxc4 {[%emt 0:00:06]} 35. Kg1 {[%emt 0:01:00]} c3 {[%emt 0:00:05]} 0-1

[Event "SVK ECo-C Extraliga 2018-19"]
[Site "Slovakia"]
[Date "2018.12.09"]
[Round "4"]
[White "Kopera, Michal"]
[Black "Kovacik, Emil"]
[Result "*"]
[ECO "C47"]
[WhiteElo "2152"]
[BlackElo "2060"]
[Annotator "NA"]
[PlyCount "21"]
[EventDate "2018.11.10"]
[EventType "team-tourn"]
[EventCountry "SVK"]
[SourceTitle "playchess.com"]
[Source "ChessBase"]
[SourceQuality "1"]
[WhiteTeam "Zilina"]
[BlackTeam "Dubnica"]
[TimeControl "40/5400+30:1800+30"]

1. e4 {[%emt 0:00:00]} e5 {[%emt 0:00:00]} 2. Nf3 {[%emt 0:00:00]} Nc6 {[%emt 0:00:00]} 3. Nc3 {[%emt 0:00:04]} Nf6 {[%emt 0:00:03]} 4. d4 exd4 {[%emt 0:01:32]} 5. Nxd4 {[%emt 0:03:49]} Bb4 {[%emt 0:01:19]} 6. Nxc6 {[%emt 0:03:12]} bxc6 {[%emt 0:00:10]} 7. Bd3 {[%emt 0:00:04]} d5 {[%emt 0:05:33]} 8. exd5 {[%emt 0:01:09]} cxd5 {[%emt 0:00:05]} 9. O-O {[%emt 0:00:06]} O-O {[%emt 0:00:11]} 10. Bg5 {[%emt 0:00:09]} Be7 {[%emt 0:03:46]} 11. Re1 {[%emt 0:02:48]} *

[Event "SVK ECo-C Extraliga 2018-19"]
[Site "Slovakia"]
[Date "2018.12.09"]
[Round "4"]
[White "Kovacik, Emil"]
[Black "Kopera, Michal"]
[Result "1/2-1/2"]
[ECO "C47"]
[WhiteElo "2060"]
[BlackElo "2152"]
[Annotator "NA"]
[PlyCount "51"]
[EventDate "2018.11.10"]
[EventType "team-tourn"]
[EventCountry "SVK"]
[SourceTitle "playchess.com"]
[Source "ChessBase"]
[SourceQuality "1"]
[WhiteTeam "Dubnica"]
[BlackTeam "Zilina"]
[TimeControl "40/5400+30:1800+30"]

1. e4 {[%emt 0:00:00]} e5 {[%emt 0:00:00]} 2. Nf3 {[%emt 0:00:00]} Nc6 {[%emt 0:00:00]} 3. Nc3 {[%emt 0:00:04]} Nf6 {[%emt 0:00:03]} 4. d4 exd4 {[%emt 0:01:32]} 5. Nxd4 {[%emt 0:03:49]} Bb4 {[%emt 0:01:19]} 6. Nxc6 {[%emt 0:03:12]} bxc6 {[%emt 0:00:10]} 7. Bd3 {[%emt 0:00:04]} d5 {[%emt 0:05:33]} 8. exd5 {[%emt 0:01:09]} cxd5 {[%emt 0:00:05]} 9. O-O {[%emt 0:00:06]} O-O {[%emt 0:00:11]} 10. Bg5 {[%emt 0:00:09]} Be7 {[%emt 0:03:46]} 11. Re1 {[%emt 0:02:48]} Be6 {[%emt 0:10:31]} 12. Ne2 {[%emt 0:06:31]} h6 {[%emt 0:09:35]} 13. Bh4 {[%emt 0:01:35]} c5 {[%emt 0:11:01]} 14. c3 {[%emt 0:13:29]} Qc7 {[%emt 0:07:58]} 15. Bc2 {[%emt 0:06:39]} Rfe8 {[%emt 0:07:45]} 16. Qd3 {[%emt 0:06:51]} Ne4 {[%emt 0:08:40]} 17. Bxe7 {[%emt 0:04:44]} Rxe7 {[%emt 0:01:45]} 18. Ng3 {[%emt 0:10:00]} Rae8 {[%emt 0:01:27]} 19. Red1 {[%emt 0:10:32]} g6 {[%emt 0:04:19]} 20. Ba4 {[%emt 0:05:18]} Rb8 {[%emt 0:03:15]} 21. b3 {[%emt 0:08:13]} Nf6 {[%emt 0:04:58]} 22. Qd2 {[%emt 0:00:44]} Kg7 {[%emt 0:00:46]} 23. Rac1 {[%emt 0:01:15]} h5 {[%emt 0:00:47]} 24. Qg5 {[%emt 0:01:07]} Rh8 {[%emt 0:02:27]} 25. Re1 {[%emt 0:07:37]} h4 {[%emt 0:01:41]} 26. Ne2 {[%emt 0:00:22]} 1/2-1/2